[Event "45th GER-ch Rapid 2019"]
[Site "Neumarkt in der Oberpfalz"]
[Date "2019.09.22"]
[Round "8.1"]
[White "Buhmann, Rainer"]
[Black "Langheinrich, Ferenc"]
[Result "1-0"]
[ECO "E51"]
[WhiteElo "2574"]
[BlackElo "2382"]
[Annotator "ChessBase"]
[PlyCount "80"]
[EventDate "2019.09.21"]
[EventType "swiss"]
[EventCountry "GER"]
[SourceTitle "playchess.com"]
[Source "ChessBase"]
[SourceQuality "1"]
[TimeControl "900+10"]

1. d4 {[%emt 0:00:00]} Nf6 {[%emt 0:00:00]} 2. c4 {[%emt 0:00:04]} e6 {[%emt 0:00:23]} 3. Nf3 {[%emt 0:00:08]} d5 {[%emt 0:00:10]} 4. Nc3 {[%emt 0:00:04]} Bb4 {[%emt 0:00:05]} 5. e3 {[%emt 0:00:05]} O-O {[%emt 0:00:14]} 6. Bd2 {[%emt 0:00:02]} dxc4 {[%emt 0:01:33]} 7. Bxc4 {[%emt 0:00:04]} c5 {[%emt 0:00:04]} 8. O-O {[%emt 0:01:23]} b6 {[%emt 0:03:02]} 9. a3 {[%emt 0:00:27]} Bxc3 {[%emt 0:00:56]} 10. Bxc3 {[%emt 0:00:03]} Nbd7 {[%emt 0:00:29]} 11. Rc1 {[%emt 0:02:34]} Bb7 {[%emt 0:00:04]} 12. dxc5 {[%emt 0:01:08]} Nxc5 {[%emt 0:01:26]} 13. b4 {[%emt 0:00:48]} Nce4 {[%emt 0:00:59]} 14. Bd4 {[%emt 0:00:40]} Qe7 {[%emt 0:00:25]} 15. Qe2 {[%emt 0:00:22]} a5 {[%emt 0:01:27]} 16. Qb2 {[%emt 0:02:20]} axb4 {[%emt 0:01:05]} 17. axb4 {[%emt 0:00:42]} Ra4 {[%emt 0:01:09]} 18. b5 {[%emt 0:01:03]} Nc5 {[%emt 0:00:15]} 19. Ne5 {[%emt 0:01:17]} Nfd7 {[%emt 0:01:46]} 20. Nc6 {[%emt 0:00:42]} Qh4 {[%emt 0:00:34]} 21. Bxg7 {[%emt 0:01:32]} Rfa8 {[%emt 0:00:46]} 22. g3 {[%emt 0:01:11]} Qg5 {[%emt 0:00:10]} 23. Bd4 {[%emt 0:00:08]} h5 {[%emt 0:00:48]} 24. f4 {[%emt 0:00:26]} Qg4 {[%emt 0:00:12]} 25. Be2 {[%emt 0:00:52]} Qh3 {[%emt 0:00:10]} 26. Ra1 {[%emt 0:00:15]} h4 {[%emt 0:00:26]} 27. gxh4 {[%emt 0:00:25]} Kh7 {[%emt 0:00:08]} 28. Bf3 {[%emt 0:00:33]} Rg8+ {[%emt 0:00:08]} 29. Kh1 {[%emt 0:00:09]} Rxa1 {[%emt 0:00:36]} 30. Qxa1 {[%emt 0:00:00]} f5 {[%emt 0:00:04]} 31. Qd1 {[%emt 0:00:21]} Kh6 {[%emt 0:00:09]} 32. Qe2 {[%emt 0:00:14]} Qxh4 {[%emt 0:00:08]} 33. Rg1 {[%emt 0:00:04]} Rxg1+ {[%emt 0:00:02]} 34. Kxg1 {[%emt 0:00:00]} Ne4 {[%emt 0:00:22]} 35. Bg2 {[%emt 0:00:25]} Ndc5 {[%emt 0:00:09]} 36. Qf3 {[%emt 0:00:07]} Qe1+ {[%emt 0:00:08]} 37. Qf1 {[%emt 0:00:02]} Qh4 {[%emt 0:00:02]} 38. Qe2 {[%emt 0:00:13]} Ba8 {[%emt 0:00:22]} 39. Bf1 {[%emt 0:00:12]} Nd3 {[%emt 0:00:18]} 40. Qg2 {[%emt 0:00:09]} e5 {[%emt 0:00:26]} 1-0

[Event "45th GER-ch Rapid 2019"]
[Site "Neumarkt in der Oberpfalz"]
[Date "2019.09.22"]
[Round "8.3"]
[White "Fischer, Edwin"]
[Black "Beesk, Kevin"]
[Result "0-1"]
[ECO "A46"]
[WhiteElo "2141"]
[BlackElo "1969"]
[Annotator "NA"]
[PlyCount "128"]
[EventDate "2019.09.21"]
[EventType "swiss"]
[EventCountry "GER"]
[SourceTitle "playchess.com"]
[Source "ChessBase"]
[SourceQuality "1"]
[TimeControl "900+10"]

1. d4 {[%emt 0:00:00]} Nf6 {[%emt 0:00:00]} 2. Nf3 {[%emt 0:00:00]} c5 {[%emt 0:00:01]} 3. c3 {[%emt 0:00:34]} b6 {[%emt 0:00:13]} 4. Bg5 {[%emt 0:00:24]} cxd4 {[%emt 0:01:11]} 5. Bxf6 {[%emt 0:00:22]} gxf6 {[%emt 0:00:03]} 6. cxd4 {[%emt 0:00:02]} Bb7 {[%emt 0:00:02]} 7. e3 {[%emt 0:00:14]} e6 {[%emt 0:01:05]} 8. Nc3 {[%emt 0:01:00]} f5 {[%emt 0:01:19]} 9. g3 {[%emt 0:00:37]} Bg7 {[%emt 0:02:14]} 10. Bg2 {[%emt 0:00:18]} O-O {[%emt 0:00:22]} 11. O-O {[%emt 0:00:05]} Bxf3 {[%emt 0:02:19]} 12. Bxf3 {[%emt 0:00:52]} d5 {[%emt 0:00:02]} 13. Rc1 {[%emt 0:00:18]} Nd7 {[%emt 0:00:16]} 14. Be2 {[%emt 0:01:43]} a6 {[%emt 0:01:33]} 15. a4 {[%emt 0:02:15]} Qg5 {[%emt 0:01:38]} 16. Bd3 {[%emt 0:00:31]} Nf6 {[%emt 0:00:41]} 17. Qe2 {[%emt 0:00:50]} a5 {[%emt 0:00:01]} 18. f4 {[%emt 0:00:52]} Qg6 {[%emt 0:00:23]} 19. Nb5 {[%emt 0:00:35]} h5 {[%emt 0:00:01]} 20. Rc6 {[%emt 0:00:48]} Rab8 {[%emt 0:00:12]} 21. Rfc1 {[%emt 0:00:27]} Kh8 {[%emt 0:00:02]} 22. Kh1 {[%emt 0:00:36]} Rg8 {[%emt 0:00:04]} 23. Rc7 {[%emt 0:00:23]} Bf8 {[%emt 0:01:05]} 24. Na7 {[%emt 0:01:03]} Bb4 {[%emt 0:01:42]} 25. Nc6 {[%emt 0:00:21]} Rbf8 {[%emt 0:00:40]} 26. Ne5 {[%emt 0:00:15]} Qh7 {[%emt 0:00:17]} 27. R1c6 {[%emt 0:00:27]} Rg7 {[%emt 0:00:01]} 28. Nf3 {[%emt 0:01:27]} Rfg8 {[%emt 0:00:28]} 29. Nh4 {[%emt 0:00:55]} Ne8 {[%emt 0:00:56]} 30. Rd7 {[%emt 0:00:45]} Nf6 {[%emt 0:00:11]} 31. Rb7 {[%emt 0:00:02]} Ne4 {[%emt 0:00:07]} 32. Bxe4 {[%emt 0:00:10]} fxe4 {[%emt 0:00:10]} 33. Rcxb6 {[%emt 0:00:12]} Rc8 {[%emt 0:00:23]} 34. Rb8 {[%emt 0:00:28]} Rgg8 {[%emt 0:00:00]} 35. Rxc8 {[%emt 0:00:06]} Rxc8 {[%emt 0:00:01]} 36. Kg2 {[%emt 0:00:24]} Rc1 {[%emt 0:00:23]} 37. Rb8+ {[%emt 0:00:49]} Kg7 38. Qb5 {[%emt 0:00:00]} Rc2+ {[%emt 0:00:10]} 39. Kh3 {[%emt 0:00:00]} Be7 {[%emt 0:00:29]} 40. Qe8 {[%emt 0:00:04]} Bxh4 {[%emt 0:00:03]} 41. Qf8+ {[%emt 0:00:13]} Kg6 {[%emt 0:00:21]} 42. gxh4 {[%emt 0:00:11]} Re2 {[%emt 0:00:21]} 43. Qe7 {[%emt 0:00:19]} Rxe3+ {[%emt 0:00:02]} 44. Kg2 {[%emt 0:00:01]} Qg7 {[%emt 0:00:20]} 45. Qg5+ {[%emt 0:00:32]} Kh7 {[%emt 0:00:38]} 46. Rb5 {[%emt 0:00:00]} Qxg5+ {[%emt 0:00:00]} 47. fxg5 {[%emt 0:00:00]} Rd3 {[%emt 0:00:00]} 48. Rxa5 {[%emt 0:00:02]} Rxd4 {[%emt 0:00:00]} 49. Ra7 {[%emt 0:00:15]} Kg6 {[%emt 0:00:00]} 50. Kg3 {[%emt 0:00:08]} e3 {[%emt 0:00:18]} 51. Kf3 {[%emt 0:00:03]} Rxh4 {[%emt 0:00:01]} 52. Kxe3 {[%emt 0:00:04]} e5 {[%emt 0:00:05]} 53. Kf3 {[%emt 0:00:24]} Rxh2 {[%emt 0:00:11]} 54. b4 {[%emt 0:00:05]} Rh3+ {[%emt 0:00:11]} 55. Kg2 {[%emt 0:00:19]} Rb3 {[%emt 0:00:01]} 56. Rb7 {[%emt 0:00:16]} d4 {[%emt 0:00:02]} 57. a5 {[%emt 0:00:04]} d3 {[%emt 0:00:08]} 58. Kf2 {[%emt 0:00:02]} e4 {[%emt 0:00:30]} 59. Ke3 {[%emt 0:00:21]} h4 {[%emt 0:00:12]} 60. a6 {[%emt 0:00:01]} Ra3 {[%emt 0:00:05]} 61. Kxe4 {[%emt 0:00:19]} h3 {[%emt 0:00:11]} 62. Kf4 {[%emt 0:00:14]} d2 {[%emt 0:00:15]} 63. Rb6+ {[%emt 0:00:09]} Kg7 {[%emt 0:00:03]} 64. Rd6 {[%emt 0:00:12]} h2 {[%emt 0:00:02]} 0-1

[Event "45th GER-ch Rapid 2019"]
[Site "Neumarkt in der Oberpfalz"]
[Date "2019.09.22"]
[Round "8.4"]
[White "Schilay, Lorenz"]
[Black "Herrmann, Michael"]
[Result "0-1"]
[ECO "B10"]
[WhiteElo "1871"]
[BlackElo "2242"]
[Annotator "NA"]
[PlyCount "74"]
[EventDate "2019.09.21"]
[EventType "swiss"]
[EventCountry "GER"]
[SourceTitle "playchess.com"]
[Source "ChessBase"]
[SourceQuality "1"]
[TimeControl "900+10"]

1. e4 {[%emt 0:00:00]} c6 {[%emt 0:00:15]} 2. Nf3 {[%emt 0:00:00]} d5 {[%emt 0:00:05]} 3. exd5 {[%emt 0:00:00]} cxd5 {[%emt 0:00:05]} 4. Ne5 {[%emt 0:00:00]} Nc6 {[%emt 0:00:12]} 5. d4 {[%emt 0:00:01]} e6 {[%emt 0:00:36]} 6. Bb5 {[%emt 0:00:09]} Bd7 {[%emt 0:00:11]} 7. Nxd7 {[%emt 0:00:05]} Qxd7 {[%emt 0:00:11]} 8. c3 {[%emt 0:00:04]} a6 {[%emt 0:00:45]} 9. Bd3 {[%emt 0:00:02]} Nf6 {[%emt 0:00:15]} 10. Nd2 {[%emt 0:00:22]} Bd6 {[%emt 0:00:29]} 11. Qe2 {[%emt 0:00:45]} O-O {[%emt 0:00:53]} 12. O-O {[%emt 0:01:09]} e5 {[%emt 0:01:45]} 13. dxe5 $11 {[%emt 0:00:08]} Nxe5 {[%emt 0:00:12]} 14. Nf3 {[%emt 0:00:21]} Rfe8 {[%emt 0:00:55]} 15. Nxe5 {[%emt 0:00:09]} Rxe5 {[%emt 0:00:54]} 16. Qc2 {[%emt 0:01:03]} Rae8 {[%emt 0:00:28]} 17. Be3 {[%emt 0:00:10]} Ne4 {[%emt 0:02:37]} 18. g3 {[%emt 0:03:12]} Qh3 {[%emt 0:00:41]} 19. Be2 {[%emt 0:00:49]} Nxg3 {[%emt 0:02:17]} 20. hxg3 {[%emt 0:00:49]} Rxe3 {[%emt 0:00:09]} 21. Bg4 {[%emt 0:00:28]} Rxg3+ {[%emt 0:02:02]} 22. fxg3 {[%emt 0:00:08]} Bc5+ {[%emt 0:00:08]} 23. Rf2 {[%emt 0:00:29]} Qxg3+ {[%emt 0:00:11]} 24. Kf1 {[%emt 0:00:03]} Bxf2 {[%emt 0:00:14]} 25. Qxf2 {[%emt 0:00:14]} Qxg4 {[%emt 0:00:09]} 26. Re1 {[%emt 0:00:34]} Re4 {[%emt 0:00:30]} 27. Rxe4 {[%emt 0:00:12]} dxe4 {[%emt 0:00:34]} 28. Qa7 {[%emt 0:00:14]} Qf3+ {[%emt 0:00:23]} 29. Ke1 {[%emt 0:00:04]} h5 {[%emt 0:00:15]} 30. Qxb7 {[%emt 0:00:18]} h4 {[%emt 0:00:13]} 31. c4 {[%emt 0:08:08]} h3 {[%emt 0:00:19]} 32. c5 {[%emt 0:00:00]} Qg3+ {[%emt 0:00:29]} 33. Ke2 {[%emt 0:00:00]} Qg2+ {[%emt 0:00:09]} 34. Ke3 {[%emt 0:00:00]} Qg3+ {[%emt 0:00:44]} 35. Kd4 {[%emt 0:00:00]} h2 {[%emt 0:00:21]} 36. Qc8+ {[%emt 0:00:00]} Kh7 {[%emt 0:00:02]} 37. Qf5+ {[%emt 0:00:00]} Kh6 {[%emt 0:00:01]} 0-1

[Event "45th GER-ch Rapid 2019"]
[Site "Neumarkt in der Oberpfalz"]
[Date "2019.09.22"]
[Round "9.3"]
[White "Beesk, Kevin"]
[Black "Erlach, Olaf"]
[Result "1/2-1/2"]
[ECO "A00"]
[WhiteElo "1969"]
[BlackElo "2053"]
[Annotator "NA"]
[PlyCount "57"]
[EventDate "2019.09.21"]
[EventType "swiss"]
[EventCountry "GER"]
[SourceTitle "playchess.com"]
[Source "ChessBase"]
[SourceQuality "1"]
[TimeControl "900+10"]

1. Nc3 {[%emt 0:00:00]} d5 {[%emt 0:00:00]} 2. e4 {[%emt 0:00:00]} dxe4 {[%emt 0:00:03]} 3. Nxe4 {[%emt 0:00:00]} Nf6 {[%emt 0:01:15]} 4. Ng3 {[%emt 0:00:28]} e5 {[%emt 0:00:13]} 5. Bc4 {[%emt 0:00:12]} Bc5 {[%emt 0:03:13]} 6. Nf3 {[%emt 0:01:28]} Nc6 {[%emt 0:01:03]} 7. O-O {[%emt 0:00:51]} O-O {[%emt 0:00:10]} 8. d3 {[%emt 0:00:06]} h6 {[%emt 0:00:15]} 9. h3 {[%emt 0:00:39]} Re8 {[%emt 0:00:42]} 10. Re1 {[%emt 0:01:20]} Qd6 {[%emt 0:00:54]} 11. c3 {[%emt 0:01:32]} a6 {[%emt 0:02:09]} 12. a4 {[%emt 0:00:11]} Bd7 {[%emt 0:00:37]} 13. Qc2 {[%emt 0:03:26]} e4 {[%emt 0:01:46]} 14. Nxe4 {[%emt 0:01:11]} Nxe4 {[%emt 0:00:04]} 15. dxe4 {[%emt 0:01:39]} Qg3 {[%emt 0:02:46]} 16. Kf1 {[%emt 0:01:11]} Qg6 {[%emt 0:00:27]} 17. Bd3 {[%emt 0:00:35]} Qh5 {[%emt 0:00:11]} 18. Ng1 {[%emt 0:01:13]} Ne5 {[%emt 0:00:15]} 19. f4 {[%emt 0:00:49]} Nxd3 {[%emt 0:00:26]} 20. Qxd3 {[%emt 0:00:00]} Rad8 {[%emt 0:00:32]} 21. Qf3 {[%emt 0:00:05]} Qh4 {[%emt 0:00:19]} 22. Be3 {[%emt 0:00:14]} Bxe3 {[%emt 0:00:14]} 23. Rxe3 {[%emt 0:00:10]} Bc6 {[%emt 0:00:19]} 24. Qf2 {[%emt 0:00:22]} Qxf2+ 25. Kxf2 Rxe4 {[%emt 0:00:12]} 26. Rxe4 {[%emt 0:00:15]} Bxe4 {[%emt 0:00:01]} 27. Re1 {[%emt 0:00:09]} f5 {[%emt 0:00:09]} 28. Nf3 {[%emt 0:00:25]} Bxf3 {[%emt 0:00:13]} 29. Kxf3 {[%emt 0:00:04]} 1/2-1/2

[Event "45th GER-ch Rapid 2019"]
[Site "Neumarkt in der Oberpfalz"]
[Date "2019.09.22"]
[Round "9.4"]
[White "Muranyi, Karl-Jasmin"]
[Black "Voege, Tobias"]
[Result "1/2-1/2"]
[ECO "A40"]
[WhiteElo "2331"]
[BlackElo "2288"]
[Annotator "NA"]
[PlyCount "72"]
[EventDate "2019.09.21"]
[EventType "swiss"]
[EventCountry "GER"]
[SourceTitle "playchess.com"]
[Source "ChessBase"]
[SourceQuality "1"]
[TimeControl "900+10"]

1. d4 {[%emt 0:00:00]} e6 {[%emt 0:00:00]} 2. c3 {[%emt 0:00:00]} f5 {[%emt 0:00:02]} 3. h3 {[%emt 0:00:06]} b6 {[%emt 0:00:13]} 4. Bf4 {[%emt 0:00:14]} Bb7 {[%emt 0:00:04]} 5. Nd2 {[%emt 0:00:02]} Nf6 {[%emt 0:00:02]} 6. e3 {[%emt 0:00:07]} Be7 {[%emt 0:00:02]} 7. Ngf3 {[%emt 0:00:01]} O-O {[%emt 0:00:05]} 8. Bc4 {[%emt 0:00:11]} Ne4 {[%emt 0:01:21]} 9. O-O {[%emt 0:00:46]} d5 {[%emt 0:00:33]} 10. Be2 {[%emt 0:00:08]} Nd7 {[%emt 0:01:16]} 11. Ne5 {[%emt 0:00:03]} Ndf6 {[%emt 0:00:21]} 12. f3 {[%emt 0:00:35]} Nd6 {[%emt 0:00:35]} 13. g4 {[%emt 0:00:56]} Nd7 {[%emt 0:01:00]} 14. Bd3 {[%emt 0:00:30]} g5 {[%emt 0:02:33]} 15. Bh2 {[%emt 0:00:27]} Nxe5 {[%emt 0:00:38]} 16. Bxe5 {[%emt 0:01:53]} Bf6 {[%emt 0:00:36]} 17. Qe1 {[%emt 0:02:13]} c5 {[%emt 0:02:54]} 18. Qg3 {[%emt 0:00:17]} Nf7 {[%emt 0:02:15]} 19. Bxf6 {[%emt 0:02:51]} Qxf6 {[%emt 0:00:02]} 20. f4 {[%emt 0:00:01]} gxf4 {[%emt 0:01:26]} 21. Rxf4 {[%emt 0:00:18]} Kh8 {[%emt 0:00:21]} 22. Kh2 {[%emt 0:00:22]} Rg8 {[%emt 0:00:31]} 23. Qf2 {[%emt 0:00:11]} Qh6 {[%emt 0:00:16]} 24. gxf5 {[%emt 0:01:37]} e5 {[%emt 0:00:00]} 25. dxe5 {[%emt 0:01:11]} Nxe5 {[%emt 0:00:03]} 26. Be2 {[%emt 0:00:01]} d4 {[%emt 0:00:54]} 27. e4 {[%emt 0:02:02]} Raf8 {[%emt 0:00:59]} 28. cxd4 {[%emt 0:00:30]} Ng6 {[%emt 0:00:09]} 29. Rf3 {[%emt 0:00:55]} Nh4 {[%emt 0:00:01]} 30. Rg1 {[%emt 0:00:59]} Qxd2 {[%emt 0:00:09]} 31. Rxg8+ {[%emt 0:00:06]} Rxg8 {[%emt 0:00:02]} 32. Qxh4 {[%emt 0:00:01]} Qxe2+ {[%emt 0:00:04]} 33. Rf2 {[%emt 0:00:00]} Qxe4 {[%emt 0:00:19]} 34. Qf6+ {[%emt 0:00:06]} Rg7 {[%emt 0:00:01]} 35. Qf8+ {[%emt 0:00:01]} Rg8 {[%emt 0:00:01]} 36. Qf6+ {[%emt 0:00:01]} Rg7 {[%emt 0:00:01]} 1/2-1/2